bitfinex-derivatives/quotes_BTCF0:USTF0_20250823
["timestamp","ask_amount","ask_price","bid_price","bid_amount"]
[1755916652643,1.9559458,115640.0,115630.0,0.27752848]
[1755916652851,1.4232047,115640.0,115630.0,0.15624628]
[1755916653354,1.4232047,115640.0,115630.0,0.19101628]
[1755916653651,1.4232047,115640.0,115630.0,0.04699887]
[1755916653950,1.9579458,115640.0,115630.0,0.04699887]
[1755916655955,0.0865198,115620.0,115610.0,0.08009]
[1755916656159,2.3138509,115620.0,115610.0,0.14046455]
[1755916656354,2.3138509,115620.0,115610.0,0.06037455]
[1755916656556,2.3138509,115620.0,115610.0,0.13005723]
[1755916656756,2.3138509,115620.0,115610.0,0.06037455]
[1755916656955,2.31392154,115620.0,115610.0,0.06037455]
[1755916657159,2.3148509,115620.0,115610.0,0.06037455]
[1755916657359,2.3148509,115620.0,115610.0,0.04685]
[1755916657560,2.31493279,115620.0,115610.0,0.06037548]
[1755916657751,2.3148509,115620.0,115610.0,0.06037548]
[1755916658556,2.31493279,115620.0,115610.0,0.06037548]
[1755916658757,2.31691179,115620.0,115610.0,0.06037548]
[1755916658958,2.31692329,115620.0,115610.0,0.06037548]
[1755916659153,2.31692761,115620.0,115610.0,0.06037548]
[1755916659348,2.31691145,115620.0,115610.0,0.06037548]
[1755916659549,2.31693266,115620.0,115610.0,0.06037548]
[1755916659761,2.31693279,115620.0,115610.0,0.06037548]
[1755916660062,2.3168509,115620.0,115610.0,0.06037548]
[1755916660458,2.3168509,115620.0,115610.0,0.06037542]
[1755916660657,1.7821098,115620.0,115610.0,0.06037542]
[1755916660956,2.3168509,115620.0,115610.0,0.06037542]
[1755916661756,2.3168509,115620.0,115610.0,0.12791248]
[1755916661961,1.7821098,115620.0,115610.0,0.12791248]
[1755916662151,2.3168509,115620.0,115610.0,0.12791248]
[1755916662556,1.7821098,115620.0,115610.0,0.12791248]
[1755916662756,2.3168509,115620.0,115610.0,0.06037542]
[1755916663152,1.7811098,115620.0,115610.0,0.06037542]
[1755916663365,2.3168509,115620.0,115610.0,0.06037542]
[1755916663756,1.7821098,115620.0,115610.0,0.06037542]
[1755916664063,2.3168509,115620.0,115610.0,0.06037542]
[1755916665664,2.3168509,115620.0,115610.0,0.18738]
[1755916665853,2.3168509,115620.0,115610.0,0.20090566]
[1755916666257,2.41759525,115620.0,115610.0,0.20090566]
[1755916666454,2.41759525,115620.0,115610.0,0.1569]
[1755916666760,2.41759525,115620.0,115610.0,0.12213]
[1755916667263,2.41659525,115620.0,115610.0,0.12213]
[1755916667470,2.41759525,115620.0,115610.0,0.13565564]
[1755916667672,1.7821098,115620.0,115610.0,0.13565564]
[1755916667871,2.41759525,115620.0,115610.0,0.13565564]
[1755916668065,2.41759525,115620.0,115610.0,0.12213]
[1755916668371,2.41759525,115620.0,115610.0,0.18738]
[1755916668570,2.41559525,115620.0,115610.0,0.1569]
[1755916668770,2.41659525,115620.0,115610.0,0.12213]
[1755916668972,1.7811098,115620.0,115610.0,0.12213]
[1755916669174,2.41659525,115620.0,115610.0,0.18738]
[1755916669768,2.41659525,115620.0,115610.0,0.1569]
[1755916669971,2.41659525,115620.0,115610.0,0.12213]
[1755916670373,2.41659525,115620.0,115610.0,0.1569]
[1755916670877,2.41659525,115620.0,115610.0,0.12213]
[1755916671569,2.41659525,115620.0,115610.0,0.1569]
[1755916671770,2.41659525,115620.0,115610.0,0.12213]
[1755916671972,2.41659525,115620.0,115610.0,0.08824]
[1755916672173,2.41659525,115620.0,115610.0,0.04685]
[1755916673477,2.41659525,115620.0,115610.0,0.08285563]
[1755916673681,2.41659525,115620.0,115610.0,0.06933]
[1755916674480,2.41659525,115620.0,115610.0,0.08824]
[1755916675167,1.7811098,115620.0,115610.0,0.08824]
[1755916675372,2.41659525,115620.0,115610.0,0.08824]
[1755916675577,2.41659525,115620.0,115610.0,0.10176561]
[1755916675782,2.41659525,115620.0,115610.0,0.04685]
[1755916675992,2.41659525,115620.0,115610.0,0.01352572]
[1755916676182,0.1084368,115610.0,115600.0,0.04685]
[1755916676378,1.10472225,115610.0,115600.0,0.16037587]
[1755916677081,1.10472225,115610.0,115600.0,0.11352587]
[1755916677390,0.4692368,115610.0,115600.0,0.01352587]
[1755916677591,0.0996242,115600.0,115590.0,0.16834]
[1755916677885,2.04179806,115600.0,115590.0,0.18824]
[1755916678185,2.04172965,115600.0,115590.0,0.14685]
[1755916678991,2.04372965,115600.0,115590.0,0.17064]
[1755916679183,2.04472965,115600.0,115590.0,0.17064]
[1755916679880,2.04481154,115600.0,115590.0,0.14685]
[1755916680193,1.4092442,115600.0,115590.0,0.17064]
[1755916680391,1.4092442,115600.0,115590.0,0.28676]
[1755916680599,2.04472965,115600.0,115590.0,0.28676]
[1755916681485,1.4092442,115600.0,115590.0,0.28676]
[1755916681687,2.04472965,115600.0,115590.0,0.28676]
[1755916681883,2.04481154,115600.0,115590.0,0.28676]
[1755916682292,0.74628945,115600.0,115590.0,0.3733014]
[1755916682494,1.68401134,115600.0,115590.0,0.7341014]
[1755916682888,2.04481134,115600.0,115590.0,0.45063776]
[1755916683094,2.04481134,115600.0,115590.0,0.3733014]
[1755916683394,1.68401134,115600.0,115590.0,0.3733014]
[1755916683892,1.04852589,115600.0,115590.0,0.3733014]
[1755916684093,0.00308189,115600.0,115590.0,0.9849014]
[1755916684395,0.94068189,115600.0,115590.0,1.06223776]
[1755916684597,0.94068189,115600.0,115590.0,1.18006477]
[1755916685184,0.94068189,115600.0,115590.0,1.17926477]
[1755916685389,1.04030589,115600.0,115590.0,0.81846477]
[1755916685697,1.68397134,115600.0,115590.0,0.81846477]
[1755916686991,0.96195189,115600.0,115590.0,1.17926477]
[1755916687192,1.59743734,115600.0,115590.0,1.17926477]
[1755916687900,0.96195189,115600.0,115590.0,0.70981033]
[1755916688102,0.96195189,115600.0,115590.0,1.07061033]
[1755916688294,0.96195189,115600.0,115590.0,0.70981033]
[1755916688295,1.59743734,115600.0,115590.0,0.70981033]
[1755916688697,0.96195189,115600.0,115590.0,0.70981033]
[1755916688999,1.68397124,115600.0,115590.0,0.22247]
[1755916689199,1.68397124,115600.0,115590.0,0.20026913]
[1755916689395,1.68397124,115600.0,115590.0,0.23457913]
[1755916689594,1.68397124,115600.0,115590.0,0.18676]
[1755916689800,2.04477124,115600.0,115590.0,0.18676]
[1755916690003,2.04477124,115600.0,115590.0,0.2645629]
[1755916690193,2.04557124,115600.0,115590.0,0.2002729]
[1755916690398,1.41008579,115600.0,115590.0,0.2002729]
[1755916690587,2.04557124,115600.0,115590.0,0.2002729]
[1755916691095,2.93105669,115600.0,115590.0,0.0778029]
[1755916691296,0.1078113,115590.0,115580.0,0.23928444]
[1755916691502,1.10489675,115590.0,115580.0,0.13063]
[1755916692590,0.4716113,115590.0,115580.0,0.15442]
[1755916692790,1.10709675,115590.0,115580.0,0.27054]
[1755916692998,0.4716113,115590.0,115580.0,0.27054]
[1755916693298,1.10709675,115590.0,115580.0,0.23623]
[1755916693596,1.10709675,115590.0,115580.0,0.20625]
[1755916693801,1.10709675,115590.0,115580.0,0.24056]
[1755916694102,2.04953675,115590.0,115580.0,0.24056]
[1755916694797,2.04953675,115590.0,115580.0,0.20625]
[1755916695401,2.05804355,115590.0,115580.0,0.27054]
[1755916697198,2.05804355,115590.0,115580.0,0.3570878]
[1755916697395,2.05528355,115590.0,115580.0,0.3570878]
[1755916698007,2.05528355,115590.0,115580.0,0.27054]
[1755916698306,2.04677675,115590.0,115580.0,0.27054]
[1755916699807,2.05547095,115590.0,115580.0,0.3570878]
[1755916700306,2.05547095,115590.0,115580.0,0.46574224]
[1755916700501,2.05547095,115590.0,115580.0,0.54343619]
[1755916700804,0.00307325,115590.0,115580.0,1.79068966]
[1755916701004,0.94063325,115590.0,115580.0,1.15440421]
[1755916701203,1.670839,115590.0,115580.0,0.31244]
[1755916701402,1.39615355,115590.0,115580.0,0.30625]
[1755916701606,2.031639,115590.0,115580.0,0.17374]
[1755916702208,2.031639,115590.0,115580.0,0.27054]
[1755916702906,2.031639,115590.0,115580.0,0.34822388]
[1755916703210,1.39615355,115590.0,115580.0,0.34822388]
[1755916703411,2.031639,115590.0,115580.0,0.34822388]
[1755916703912,2.03156575,115590.0,115580.0,0.28393388]
[1755916704111,1.3960803,115590.0,115580.0,0.28393388]
[1755916704296,1.3960803,115590.0,115580.0,0.31824388]
[1755916704297,2.03164764,115590.0,115580.0,0.31824388]
[1755916704497,2.03156575,115590.0,115580.0,0.34822388]
[1755916705710,2.03164764,115590.0,115580.0,0.34822388]
[1755916705911,2.03164359,115590.0,115580.0,0.34822388]
[1755916706105,2.03164764,115590.0,115580.0,0.22763388]
[1755916706408,2.03156575,115590.0,115580.0,0.15779388]
[1755916706614,1.3960803,115590.0,115580.0,0.15779388]
[1755916706912,2.03156575,115590.0,115580.0,0.20831388]
[1755916707615,1.6460803,115590.0,115580.0,0.15779388]
[1755916707802,2.28156575,115590.0,115580.0,0.15028388]
[1755916708108,2.28156575,115590.0,115560.0,0.15567444]
[1755916708109,0.0865544,115570.0,115560.0,0.15567444]
[1755916708408,2.04431985,115570.0,115560.0,0.04702]
[1755916709206,0.0873619,115560.0,115550.0,0.11342475]
[1755916709411,1.33364735,115560.0,115550.0,0.11342475]
[1755916709611,1.33364735,115560.0,115550.0,0.06692274]
[1755916709809,0.6973619,115560.0,115550.0,0.08045586]
[1755916710010,0.6973619,115560.0,115550.0,0.06692274]
[1755916710011,1.08284735,115560.0,115550.0,0.06692274]
[1755916710411,0.4473619,115560.0,115550.0,0.06692274]
[1755916710612,1.16322941,115560.0,115550.0,0.08045601]
[1755916710815,1.41402941,115560.0,115550.0,0.06692274]
[1755916711012,1.41402941,115560.0,115550.0,0.08045601]
[1755916711211,2.12989692,115560.0,115550.0,0.01830358]
[1755916711411,2.13189692,115560.0,115550.0,0.01830398]
[1755916711714,0.4503619,115560.0,115550.0,0.01830398]
[1755916711909,1.16622941,115560.0,115550.0,0.11394274]
[1755916712318,1.16522941,115560.0,115550.0,0.11394274]
[1755916712509,1.16522941,115560.0,115550.0,0.06692274]
[1755916712510,1.16622941,115560.0,115550.0,0.06692274]
[1755916712713,1.41622941,115560.0,115550.0,0.06692274]
[1755916713115,1.41622941,115560.0,115550.0,0.00477031]
[1755916713513,0.7003619,115560.0,115550.0,0.00477031]
[1755916713714,2.38090941,115560.0,115550.0,0.00477031]
[1755916714310,1.6650419,115560.0,115550.0,0.00477031]
[1755916714614,2.38090941,115560.0,115550.0,0.05179031]
[1755916714918,1.6650419,115560.0,115550.0,0.05179031]
[1755916715310,0.7003619,115560.0,115550.0,0.05179031]
[1755916715607,2.38102941,115560.0,115550.0,0.05179031]
[1755916717119,1.6651619,115560.0,115550.0,0.05179031]
[1755916717318,2.38102941,115560.0,115550.0,0.05179031]
[1755916718719,0.4503619,115560.0,115550.0,0.15933031]
[1755916719020,0.96516189,115560.0,115550.0,0.52807951]
[1755916719220,0.96516189,115560.0,115550.0,1.05292825]
[1755916719419,2.0927114,115580.0,115570.0,0.0008]
[1755916719420,1.64536,115580.0,115570.0,0.0008]
[1755916719724,0.36268,115590.0,115580.0,0.1940868]
[1755916720023,0.96256,115590.0,115580.0,0.54754]
[1755916720211,0.36268,115600.0,115590.0,0.2732793]
[1755916720518,0.3608,115620.0,115610.0,0.2224243]
[1755916720822,0.3608,115620.0,115610.0,0.54993417]
[1755916721126,0.3608,115620.0,115610.0,0.44709214]
[1755916721315,0.36198,115620.0,115610.0,0.51577807]
[1755916721515,1.16624431,115620.0,115610.0,0.23013807]
[1755916721721,1.16624431,115620.0,115610.0,0.10901214]
[1755916721722,1.17994416,115620.0,115610.0,0.10901214]
[1755916721924,1.17994416,115620.0,115610.0,0.04702]
[1755916722224,1.18594416,115620.0,115610.0,0.10897207]
[1755916722419,0.47007665,115620.0,115610.0,0.10897207]
[1755916722724,1.18594416,115620.0,115610.0,0.10897207]
[1755916723028,1.43594416,115620.0,115610.0,0.06077207]
[1755916723214,0.0865243,115610.0,115600.0,0.04702]
[1755916723420,2.12571181,115610.0,115600.0,0.04702]
[1755916723618,1.4098443,115610.0,115600.0,0.04702]
[1755916723918,2.12571181,115610.0,115600.0,0.04702]
[1755916724423,1.32332,115610.0,115600.0,0.1351]
[1755916724614,1.4098443,115610.0,115600.0,0.06994]
[1755916724922,0.0865318,115600.0,115590.0,0.14725307]
[1755916725124,0.3608,115600.0,115590.0,0.1753232]
[1755916725421,0.3608,115600.0,115590.0,0.2048432]
[1755916725624,0.3608,115600.0,115590.0,0.28235307]
[1755916725823,0.3608,115600.0,115590.0,0.2048432]
[1755916726023,0.4473318,115600.0,115590.0,0.2048432]
[1755916726218,0.0865393,115590.0,115580.0,0.07750987]
[1755916726520,1.4076593,115590.0,115580.0,0.12452987]
[1755916726722,2.12352681,115590.0,115580.0,0.04702]
[1755916727029,0.0865468,115580.0,115570.0,0.12452987]
[1755916727220,1.16321431,115580.0,115570.0,0.04702]
[1755916727421,0.4473468,115580.0,115570.0,0.04702]
[1755916727622,1.16321431,115580.0,115570.0,0.04702]
[1755916727924,0.0865543,115570.0,115560.0,0.04702]
[1755916728226,2.12334181,115570.0,115560.0,0.04702]
[1755916728832,0.0865618,115560.0,115550.0,0.05179031]
[1755916729026,1.16322931,115560.0,115550.0,0.05179031]
[1755916729330,1.16222931,115560.0,115550.0,0.05179031]
[1755916730329,0.4483618,115560.0,115550.0,0.05279031]
[1755916730531,1.16422931,115560.0,115550.0,0.05279031]
[1755916730733,1.16322931,115560.0,115550.0,0.05279031]
[1755916731226,0.4473618,115560.0,115550.0,0.05279031]
[1755916731427,1.16322931,115560.0,115550.0,0.05279031]
[1755916731633,1.16422931,115560.0,115550.0,0.05379031]
[1755916731930,1.16422931,115560.0,115550.0,0.11235031]
[1755916732132,0.4483618,115560.0,115550.0,0.11235031]
[1755916732321,1.16422931,115560.0,115550.0,0.11235031]
[1755916732518,0.3638,115560.0,115550.0,0.22843971]
[1755916732925,0.3638,115560.0,115550.0,0.47843971]
[1755916733126,0.003,115560.0,115550.0,1.00408845]
[1755916733329,0.00479,115600.0,115590.0,0.0865394]
[1755916733520,0.95544,115600.0,115510.0,0.12213363]
[1755916733722,0.7216,115520.0,115490.0,3.56330617]
[1755916733922,0.3608,115500.0,115490.0,3.47785316]
[1755916734122,0.3608,115500.0,115490.0,3.87785316]
[1755916734327,0.3608,115500.0,115490.0,4.06436209]
[1755916734526,0.3608,115500.0,115490.0,4.41522628]
[1755916734723,0.36086102,115510.0,115490.0,4.97614347]
[1755916734928,0.3608,115500.0,115490.0,4.35947596]
[1755916735127,0.3608,115500.0,115490.0,4.92813623]
[1755916735426,0.3618,115500.0,115490.0,4.67893623]
[1755916735629,0.3618,115500.0,115490.0,4.79349092]
[1755916735822,0.3618,115500.0,115490.0,5.75935843]
[1755916736024,0.001,115500.0,115490.0,5.75755843]
[1755916736224,0.003,115500.0,115490.0,5.75855843]
[1755916736425,0.3638,115500.0,115490.0,5.75855843]
[1755916736626,0.3638,115500.0,115490.0,5.04269092]
[1755916736822,0.08561162,115510.0,115500.0,0.0866064]
[1755916737129,0.2942,115520.0,115510.0,0.4997289]
[1755916737432,1.31084,115540.0,115530.0,0.0865839]
[1755916737732,1.67164,115540.0,115530.0,0.1865839]
[1755916737930,1.88261,115540.0,115530.0,0.1865839]
[1755916738132,1.88261,115540.0,115530.0,0.27315274]
[1755916738527,4.58427293,115540.0,115530.0,0.18656884]
[1755916738728,4.58427293,115540.0,115530.0,0.27315274]
[1755916738928,2.33627293,115540.0,115530.0,0.18756884]
[1755916739130,4.3076264,115540.0,115530.0,0.18756884]
[1755916739332,4.58627293,115540.0,115530.0,0.18756884]
[1755916739543,4.22105,115540.0,115530.0,0.18756884]
[1755916739732,4.58627293,115540.0,115530.0,0.27415274]
[1755916740038,2.09068293,115540.0,115530.0,0.27515274]
[1755916740232,4.34068293,115540.0,115530.0,0.27515274]
[1755916740530,4.34370907,115540.0,115530.0,0.27515274]
[1755916741331,4.67687547,115540.0,115530.0,0.18856884]
[1755916741738,4.92767547,115540.0,115530.0,0.18856884]
[1755916741940,4.92767547,115540.0,115530.0,0.08856884]
[1755916742236,4.92767547,115540.0,115530.0,0.17515274]
[1755916742538,4.59029907,115540.0,115530.0,0.17515274]
[1755916742738,4.67687557,115540.0,115530.0,0.17515274]
[1755916743036,4.3123865,115540.0,115530.0,0.08856884]
[1755916743234,4.67767557,115540.0,115530.0,0.08856884]
[1755916743434,0.02255,115520.0,115510.0,0.24146261]
[1755916743738,2.35912907,115520.0,115510.0,0.34146261]
[1755916743937,4.60912907,115520.0,115510.0,0.27314955]
[1755916744138,4.24384,115520.0,115510.0,0.27314955]
[1755916744339,4.60912907,115520.0,115510.0,0.27314955]
[1755916744635,4.61012907,115520.0,115510.0,0.27514955]
[1755916744835,4.08469,115520.0,115510.0,0.27514955]
[1755916745135,0.7226,115520.0,115510.0,0.27514955]
[1755916745337,2.03992907,115520.0,115510.0,0.27514955]
[1755916745837,2.04192907,115520.0,115510.0,0.27614955]
[1755916746430,2.09274907,115520.0,115510.0,0.27614955]
[1755916746838,1.72746,115520.0,115510.0,0.27614955]
[1755916747042,2.09274907,115520.0,115510.0,0.27614955]
[1755916747231,4.50289907,115520.0,115510.0,0.27614955]
[1755916747638,4.58933907,115520.0,115510.0,0.27614955]
[1755916749841,4.58933907,115520.0,115510.0,0.43101646]
[1755916755158,4.22405,115520.0,115510.0,0.43101646]
[1755916755359,4.58933907,115520.0,115510.0,0.43101646]
[1755916755561,4.58721907,115520.0,115510.0,0.43101646]
[1755916757164,1.72534,115520.0,115510.0,0.43101646]
[1755916757551,2.25077907,115520.0,115510.0,0.43101646]
[1755916757756,2.33721907,115520.0,115510.0,0.27614955]
[1755916758057,4.58721907,115520.0,115510.0,0.43154667]
[1755916758660,4.58721907,115520.0,115510.0,0.27614955]
[1755916761553,4.83721907,115520.0,115510.0,0.08614975]
[1755916761765,5.70306907,115520.0,115510.0,0.18614975]
[1755916761966,5.70386907,115520.0,115510.0,0.08656884]
[1755916762167,5.70386907,115520.0,115510.0,0.1865959]
[1755916762366,5.70386907,115520.0,115510.0,0.27316474]
[1755916762762,5.70386907,115520.0,115500.0,0.24200342]
[1755916762763,0.17633,115510.0,115500.0,0.24200342]
[1755916762963,2.06567907,115510.0,115500.0,0.44200342]
[1755916763164,3.44982907,115510.0,115500.0,0.44200342]
[1755916763464,3.44982907,115510.0,115500.0,0.52857226]
[1755916763662,4.56567907,115510.0,115500.0,0.52857226]
[1755916764261,4.56767907,115510.0,115500.0,0.37517514]
[1755916764961,4.56867907,115510.0,115500.0,0.37517514]
[1755916766366,4.56867907,115510.0,115500.0,0.66115514]
[1755916766367,4.31867907,115510.0,115500.0,0.66115514]
[1755916766567,4.31867907,115510.0,115500.0,0.50340514]
[1755916766868,4.31867907,115510.0,115500.0,0.43468514]
[1755916768274,3.45282907,115510.0,115500.0,0.93109514]
[1755916768465,4.39406907,115510.0,115500.0,0.93109514]
[1755916769867,2.14406907,115510.0,115500.0,1.08649226]
[1755916770169,2.92739,115510.0,115500.0,1.52869226]
[1755916770366,1.53219,115510.0,115500.0,1.53019882]
[1755916770671,1.53219,115510.0,115500.0,1.3748017]
[1755916770972,2.14122907,115510.0,115500.0,1.3748017]
[1755916771158,2.14122907,115510.0,115500.0,1.53030695]
[1755916773073,4.39122907,115510.0,115500.0,1.53030695]
[1755916774066,4.02594,115510.0,115500.0,1.53030695]
[1755916774266,4.39122907,115510.0,115500.0,1.3748017]
[1755916775775,4.39122907,115510.0,115500.0,1.4549717]
[1755916776076,4.39122907,115510.0,115500.0,1.0127717]
[1755916776676,4.39122907,115510.0,115500.0,1.16827695]
[1755916779181,4.39122907,115510.0,115500.0,1.0127717]
[1755916779566,4.39122907,115510.0,115500.0,0.65815707]
[1755916780080,4.02594,115510.0,115500.0,1.11701707]
[1755916780478,4.39122907,115510.0,115500.0,1.20209707]
[1755916781081,4.02594,115510.0,115500.0,1.20209707]
[1755916781281,4.39122907,115510.0,115500.0,1.20209707]
[1755916782277,4.39136581,115510.0,115500.0,1.20209707]
[1755916782782,4.34039101,115510.0,115500.0,1.20209707]
[1755916784884,0.67525101,115520.0,115500.0,1.20209707]
[1755916784885,0.50204116,115520.0,115500.0,1.04148707]
[1755916785078,0.0813202,115590.0,115580.0,0.3821067]
[1755916785277,2.00664,115630.0,115580.0,0.3821067]
[1755916785278,0.2248316,115610.0,115600.0,0.0865317]
[1755916785483,0.001,115620.0,115610.0,0.3525942]
[1755916785675,1.64584,115630.0,115620.0,0.1919767]
[1755916785987,2.39578185,115630.0,115620.0,1.15230771]
[1755916786286,0.78027101,115660.0,115650.0,0.0864943]
[1755916786488,2.11166,115660.0,115650.0,0.26636335]
[1755916786677,2.69154,115660.0,115650.0,0.87962665]
[1755916786986,1.75086,115660.0,115650.0,1.38054171]
[1755916787180,1.9145957,115660.0,115650.0,1.38054171]
[1755916787373,2.8552357,115660.0,115650.0,1.0660907]
[1755916787584,3.53128671,115660.0,115650.0,0.6052907]
[1755916787784,3.53428671,115660.0,115650.0,0.6062907]
[1755916788085,3.2198357,115660.0,115650.0,0.6062907]
[1755916788281,3.3801957,115660.0,115650.0,0.6062907]
[1755916788481,5.67011485,115660.0,115650.0,0.1391574]
[1755916788793,5.3584757,115660.0,115650.0,0.0864943]
[1755916789083,5.72302977,115660.0,115650.0,0.27295835]
[1755916789272,5.72902977,115660.0,115650.0,0.27395835]
[1755916789474,2.2377364,115660.0,115650.0,0.63188165]
[1755916789675,2.29776205,115660.0,115650.0,1.73988572]
[1755916789870,0.36455407,115690.0,115650.0,2.1732715]
[1755916790075,0.0008,115690.0,115680.0,0.0864721]
[1755916790380,5.04079407,115690.0,115680.0,0.0791921]
[1755916790575,3.31175407,115690.0,115680.0,0.0791921]
[1755916790779,5.04047451,115690.0,115680.0,0.16565615]
[1755916790982,5.29047451,115690.0,115680.0,0.0864722]
[1755916791183,4.926,115690.0,115680.0,0.0864722]
[1755916791481,5.29047451,115690.0,115680.0,0.0864722]
[1755916792286,5.30147451,115690.0,115680.0,0.0874722]
[1755916792472,4.937,115690.0,115680.0,0.0874722]
[1755916792672,5.30147451,115690.0,115680.0,0.0874722]
[1755916793286,5.30447451,115690.0,115680.0,0.0884722]
[1755916793587,5.30547451,115690.0,115680.0,0.0884722]
[1755916794080,5.30547451,115690.0,115680.0,0.0874722]
[1755916794283,5.30647451,115690.0,115680.0,0.0884722]
[1755916795586,5.30447451,115690.0,115680.0,0.0884722]
[1755916795884,5.30447451,115690.0,115650.0,0.40683908]
[1755916796188,1.08607451,115660.0,115650.0,0.5694397]
[1755916796391,2.02583451,115660.0,115650.0,0.3790164]
[1755916796584,3.75411451,115660.0,115650.0,0.46545803]
[1755916797188,3.75411451,115660.0,115650.0,0.46645803]
[1755916797589,3.75611451,115660.0,115650.0,0.46645803]
[1755916797886,3.39164,115660.0,115650.0,0.46645803]
[1755916798085,3.39515451,115660.0,115650.0,0.71167803]
[1755916798286,3.39515451,115660.0,115650.0,0.86414133]
[1755916798883,3.40115451,115660.0,115650.0,0.86414133]
[1755916799390,3.03668,115660.0,115650.0,0.86414133]
[1755916799583,3.40115451,115660.0,115650.0,1.03579133]
[1755916800192,3.40115451,115660.0,115650.0,0.75868133]
[1755916800491,3.40115451,115660.0,115650.0,0.83874175]
[1755916800685,5.13043451,115660.0,115650.0,0.54651845]
[1755916800883,3.40115451,115660.0,115650.0,0.53638071]
[1755916801385,3.76195451,115660.0,115650.0,0.43638071]
[1755916802086,4.09844251,115660.0,115650.0,0.15035184]
[1755916802285,4.09924251,115660.0,115650.0,0.15035184]
[1755916802893,4.09844251,115660.0,115650.0,0.15035184]
[1755916804093,3.64748,115660.0,115650.0,0.23684734]
[1755916804390,4.01195451,115660.0,115650.0,0.23684734]
[1755916805493,3.64748,115660.0,115650.0,0.23684734]
[1755916805686,4.01195451,115660.0,115650.0,0.23684734]
[1755916806784,3.64748,115660.0,115650.0,0.23684734]
[1755916807187,4.01195451,115660.0,115650.0,0.23684734]
[1755916807892,3.07235451,115660.0,115650.0,0.23684734]
[1755916808192,1.66788,115660.0,115650.0,1.3045836]
[1755916808490,1.66788,115660.0,115650.0,1.23452469]
[1755916808684,1.66788,115660.0,115650.0,1.34466218]
[1755916808992,1.31175451,115660.0,115650.0,1.44466218]
[1755916809290,1.6442,115680.0,115670.0,0.2262406]
[1755916809493,4.31248,115680.0,115670.0,0.85783139]
[1755916809684,4.67695451,115680.0,115670.0,0.95783139]
[1755916809992,2.58336,115680.0,115670.0,1.04429544]
[1755916810190,2.94783451,115680.0,115670.0,1.29429544]
[1755916810485,2.58836,115680.0,115670.0,1.29529544]
[1755916811293,0.0872405,115730.0,115670.0,1.29529544]
[1755916811294,0.72527451,115710.0,115670.0,1.79762995]
[1755916811477,1.64424,115710.0,115700.0,0.3722685]
[1755916811683,3.30859451,115710.0,115700.0,0.53486449]
[1755916811879,3.30859451,115710.0,115700.0,0.58615449]
[1755916812083,5.03715451,115710.0,115700.0,0.58940117]
[1755916812283,5.03715451,115710.0,115700.0,0.32277787]
[1755916812688,5.04315451,115710.0,115700.0,0.32477787]
[1755916813195,2.01104,115710.0,115700.0,1.09623117]
[1755916813389,2.94796,115710.0,115700.0,1.09523117]
[1755916813588,2.95363451,115710.0,115700.0,1.09623117]
[1755916813787,2.58916,115710.0,115700.0,1.09623117]
[1755916813990,3.31443451,115710.0,115700.0,1.09623117]
[1755916814191,1.65024,115710.0,115700.0,1.19623117]
[1755916814489,2.58916,115710.0,115700.0,1.19623117]
[1755916814694,2.95363451,115710.0,115700.0,1.19623117]
[1755916814898,2.95363451,115710.0,115700.0,0.84623117]
[1755916815090,2.58516,115710.0,115700.0,0.84523117]
[1755916815299,2.94896,115710.0,115700.0,0.94523117]
[1755916815498,3.31343451,115710.0,115700.0,0.84523117]
[1755916815696,5.04199451,115710.0,115700.0,0.47624117]
[1755916815993,5.04199451,115710.0,115700.0,0.18401787]
[1755916816194,4.31672,115710.0,115700.0,0.43793787]
[1755916816384,4.67752,115710.0,115700.0,0.69276787]
[1755916816589,2.99386,115710.0,115700.0,1.19523117]
[1755916817090,2.7882994,115710.0,115700.0,1.55970568]
[1755916817289,0.7208336,115710.0,115700.0,2.35790969]
[1755916817603,0.4411632,115710.0,115700.0,1.50356709]
[1755916817790,0.5364132,115710.0,115700.0,1.36154563]
[1755916818094,0.8257832,115710.0,115700.0,1.2217848]
[1755916818399,0.5364132,115710.0,115700.0,1.11380626]
[1755916819196,0.6511632,115710.0,115700.0,1.11380626]
[1755916819586,0.9095032,115710.0,115700.0,0.94215626]
[1755916819791,0.9095032,115710.0,115700.0,0.76919626]
[1755916820698,1.27397771,115710.0,115700.0,0.76919626]
[1755916821396,0.9095032,115710.0,115700.0,0.76919626]
[1755916821592,1.27397771,115710.0,115700.0,0.74481626]
[1755916821896,2.7905265,115710.0,115700.0,0.74481626]
[1755916822198,2.7905265,115710.0,115700.0,0.76919626]
[1755916822400,3.15500101,115710.0,115700.0,0.76919626]
[1755916823000,3.15500101,115710.0,115700.0,0.74481626]
[1755916823700,3.15500101,115710.0,115700.0,0.76919626]
[1755916823899,0.9095032,115710.0,115700.0,1.01919626]
[1755916824088,0.25834,115730.0,115700.0,1.38367077]
[1755916824293,0.19847,115740.0,115730.0,0.2108164]
[1755916824494,1.16711,115740.0,115730.0,0.58174748]
[1755916824894,1.30726,115740.0,115730.0,0.66817416]
[1755916825095,1.30726,115740.0,115730.0,0.73891169]
[1755916825301,1.22354,115740.0,115730.0,0.73891169]
[1755916825810,1.84635451,115740.0,115730.0,0.63891169]
[1755916826000,1.84635451,115740.0,115730.0,0.73891169]
[1755916826198,1.48488,115740.0,115730.0,0.73891169]
[1755916826400,1.40116,115740.0,115730.0,0.73891169]
[1755916826595,1.40116,115740.0,115730.0,0.7517565]
[1755916826902,1.84935451,115740.0,115730.0,0.7517565]
[1755916827102,1.84935451,115740.0,115730.0,0.7273766]
[1755916827499,2.00781781,115740.0,115730.0,0.7283766]
[1755916827702,3.73589781,115740.0,115730.0,0.3675766]
[1755916828118,4.09669781,115740.0,115730.0,0.3675766]
[1755916828410,4.34049781,115740.0,115730.0,0.1811402]
[1755916828603,4.34049781,115740.0,115730.0,0.2675766]
[1755916828806,3.9752233,115740.0,115730.0,0.2675766]
[1755916828999,3.6144233,115740.0,115730.0,0.3675766]
[1755916829195,1.4617233,115740.0,115730.0,0.7527566]
[1755916829405,1.11079,115740.0,115730.0,0.7527568]
[1755916829891,1.0809018,115740.0,115730.0,0.8527568]
[1755916830201,1.0580691,115740.0,115730.0,0.8527568]
[1755916830396,1.0357622,115740.0,115730.0,0.8527568]
[1755916830893,1.0079998,115740.0,115730.0,1.1027568]
[1755916831495,1.11239,115740.0,115730.0,1.6027568]
[1755916831906,1.11239,115740.0,115730.0,1.1027568]
[1755916832802,1e-07,115740.0,115730.0,1.46723131]
[1755916833002,0.14983,115760.0,115750.0,0.1108022]
[1755916833208,1.12411,115760.0,115750.0,0.95537839]
[1755916833700,1.12411,115760.0,115750.0,1.04178267]
[1755916834408,1.12711,115760.0,115750.0,1.04178267]
[1755916834708,1.12911,115760.0,115750.0,1.04178267]
[1755916835107,1.12611,115760.0,115750.0,1.04278267]
[1755916835308,1.0981185,115760.0,115750.0,1.15792616]
[1755916835502,0.6719662,115760.0,115750.0,1.42075509]
[1755916835803,0.275335,115760.0,115750.0,1.42075509]